fUST/lending_fUST_20250105
["ID","MTS","AMOUNT","RATE_DAILY","PERIOD"]
[347694035,1736070641799,-500.0,0.00019178,2]
[347694037,1736070641810,-493.52741809,0.00019178,2]
[347694039,1736070641821,-2187.98,0.00019178,2]
[347694041,1736070641832,-938.74,0.00019178,2]
[347694044,1736070641844,-500.0,0.00019178,2]
[347694046,1736070641855,-151.0,0.00019178,2]
[347694048,1736070641867,-151.0,0.00019178,2]
[347694050,1736070641879,-904.74,0.00019178,2]
[347694053,1736070641891,-500.0,0.00019178,2]
[347694055,1736070641902,-622.66,0.00019178,2]
[347694057,1736070641912,-500.0,0.00019178,2]
[347694059,1736070641922,-500.0,0.00019178,2]
[347694061,1736070641931,-611.32,0.00019178,2]
[347694063,1736070641941,-500.0,0.00019178,2]
[347694065,1736070641951,-500.0,0.00019178,2]
[347694067,1736070641961,-500.0,0.00019178,2]
[347694070,1736070641971,-500.0,0.00019178,2]
[347694072,1736070641982,-1372.63,0.00019178,2]
[347694074,1736070641993,-511.4055186,0.00019178,2]
[347694076,1736070642005,-3025.76,0.00019178,2]
[347694078,1736070642016,-3611.37,0.00019178,2]
[347694081,1736070642027,-201.13909883,0.00019178,2]
[347694083,1736070642037,-1485.77,0.00019178,2]
[347694085,1736070642047,-150.03,0.00019178,2]
[347694087,1736070642057,-392.80170329,0.00019178,2]
[347694089,1736070642067,-1945.15,0.00019178,2]
[347694091,1736070642078,-500.0,0.00019178,2]
[347694093,1736070642088,-1561.02,0.00019178,2]
[347694095,1736070642098,-504.17,0.00019178,2]
[347694098,1736070642108,-150.03,0.00019178,2]
[347694100,1736070642120,-754.73,0.00019178,2]
[347694102,1736070642130,-500.0,0.00019178,2]
[347694104,1736070642142,-500.0,0.00019178,2]
[347694106,1736070642152,-626.25,0.00019178,2]
[347694108,1736070642162,-564.05,0.00019178,2]
[347694110,1736070642172,-500.0,0.00019178,2]
[347694113,1736070642183,-4531.09,0.00019178,2]
[347694115,1736070642192,-150.03,0.00019178,2]
[347694117,1736070642203,-719.15,0.00019178,2]
[347694119,1736070642214,-150.03,0.00019178,2]
[347694121,1736070642224,-1621.57,0.00019178,2]
[347694123,1736070642234,-201.64250152,0.00019178,2]
[347694125,1736070642244,-202.71946477,0.00019178,2]
[347694127,1736070642255,-1852.45,0.00019178,2]
[347694129,1736070642265,-1081.86,0.00019178,2]
[347694132,1736070642275,-502.43794545,0.00019178,2]
[347694134,1736070642285,-500.0,0.00019178,2]
[347694136,1736070642296,-504.49,0.00019178,2]
[347694138,1736070642306,-869.37,0.00019178,2]
[347694140,1736070642316,-585.44,0.00019178,2]
[347694142,1736070642326,-509.33,0.00019178,2]
[347694144,1736070642337,-927.27,0.00019178,2]
[347694147,1736070642348,-500.0,0.00019178,2]
[347694149,1736070642358,-500.0,0.00019178,2]
[347694151,1736070642369,-169.124103,0.00019178,2]
[347694153,1736070642380,-552.1062256,0.0001919,2]
[347694155,1736070642391,-686.87,0.00019199,3]
[347694157,1736070642401,-472.26,0.000192,2]
[347694159,1736070642411,-1000.0,0.000192,10]
[347694162,1736070642423,-151.0,0.000192,2]
[347694164,1736070642433,-151.0,0.000192,2]
[347694166,1736070642444,-151.0,0.000192,2]
[347694168,1736070642454,-151.0,0.000192,2]
[347694170,1736070642464,-151.0,0.000192,2]
[347694172,1736070642474,-151.0,0.000192,2]
[347694174,1736070642485,-151.0,0.000192,2]
[347694176,1736070642495,-151.0,0.000192,2]
[347694177,1736070642505,-151.0,0.000192,2]
[347694178,1736070642515,-151.0,0.000192,2]
[347694179,1736070642525,-151.0,0.000192,2]
[347694180,1736070642535,-151.0,0.000192,2]
[347694181,1736070642545,-4703.85044884,0.000192,2]
[347694182,1736070642555,-4183.43230285,0.000192,2]
[347694183,1736070642565,-618.0,0.000192,2]
[347694184,1736070642575,-151.0,0.00019212,2]
[347694185,1736070642585,-235.351496,0.00019212,2]
[347694186,1736070642595,-5000.0,0.00019212,2]
[347694187,1736070642604,-6657.0401965,0.00019212,2]
[347694188,1736070642615,-500.0,0.00019273,2]
[347694189,1736070642625,-1175.89277482,0.00019279,2]
[347694190,1736070642635,-686.87,0.00019299,3]
[347694191,1736070642646,-686.87,0.00019299,3]
[347694193,1736070642656,-686.87,0.00019299,3]
[347694195,1736070642666,-686.87,0.00019299,3]
[347694198,1736070642676,-686.87,0.00019299,3]
[347694200,1736070642686,-686.87,0.00019299,3]
[347694202,1736070642696,-686.87,0.00019299,3]
[347694204,1736070642706,-686.87,0.00019299,3]
[347694206,1736070642716,-686.87,0.00019299,3]
[347694208,1736070642726,-686.87,0.00019299,3]
[347694210,1736070642736,-686.87,0.00019299,3]
[347694212,1736070642747,-687.08476065,0.00019299,3]
[347694214,1736070642757,-177472.28852811,0.000193,4]
[347694233,1736070642897,-111877.93229763,0.000193,4]
[347694235,1736070642909,-2403.04971753,0.000193,4]
[347694238,1736070642922,-99669.8200049,0.000193,4]
[347694282,1736070643322,-535.2274679,0.000193,4]
[347694284,1736070643334,-494.67458173,0.000193,4]
[347694290,1736070643380,-1196.0000005,0.000193,4]
[347694292,1736070643393,-7560.40748496,0.000193,4]
[347694294,1736070643405,-2715.01686624,0.000193,4]
[347694304,1736070646289,-500.0,0.00019178,2]
[347694305,1736070646300,-1942.19,0.00019178,2]
[347694306,1736070646310,-118.54172906,0.00019178,2]
[347694307,1736070646321,-32.45827094,0.00019178,2]
[347694308,1736070646331,-11398.08995479,0.000193,4]
[347694309,1736070646349,-5028.07108,0.000193,4]
[347694355,1736071834154,-465.005,0.000178,2]
[347694367,1736071838501,-1063.11168969,0.000178,2]
[347694369,1736071838511,-159.89239171,0.00017874,2]
[347694371,1736071838520,-159.89239171,0.00018055,2]
[347694372,1736071838530,-200.581027,0.00018155,2]
[347694373,1736071838538,-403.425,0.0001834,2]
[347694374,1736071838547,-300.0,0.00018999,2]
[347694375,1736071838556,-1929.13182569,0.00019,2]
[347694376,1736071838568,-28070.86817431,0.00019,2]
[347694377,1736071838578,-187.63015131,0.00019078,2]
[347694378,1736071838588,-269.1671788,0.00019086,2]
[347694379,1736071838597,-300.0,0.000191,8]
[347694380,1736071838606,-187.63015129,0.00019139,2]
[347694381,1736071838616,-13190.83019966,0.00019159,2]
[347694382,1736071838625,-1321.75494273,0.00019176,2]
[347694384,1736071838635,-500.0,0.00019177,2]
[347694386,1736071838644,-500.0,0.00019177,2]
[347694387,1736071838653,-430.21638171,0.00019177,2]
[347694388,1736071838663,-500.0,0.00019177,2]
[347694389,1736071838672,-500.0,0.00019177,2]
[347694390,1736071838681,-557.51276037,0.00019177,2]
[347694391,1736071838691,-500.0,0.00019177,2]
[347694392,1736071838700,-436.41459413,0.00019177,2]
[347694393,1736071838710,-500.0,0.00019177,2]
[347694394,1736071838719,-326.41159332,0.00019177,2]
[347694395,1736071838728,-225.48291275,0.00019177,2]
[347694396,1736071838738,-241.575,0.00019177,2]
[347694397,1736071838746,-197.25240855,0.00019177,2]
[347694398,1736071838755,-269.32621922,0.00019177,2]
[347694399,1736071838764,-540.54,0.00019178,2]
[347694400,1736071838774,-500.0,0.00019178,2]
[347694401,1736071838783,-500.0,0.00019178,2]
[347694402,1736071838793,-914.6,0.00019178,2]
[347694403,1736071838802,-500.0,0.00019178,2]
[347694404,1736071838811,-867.04,0.00019178,2]
[347694405,1736071838821,-500.0,0.00019178,2]
[347694406,1736071838831,-500.0,0.00019178,2]
[347694407,1736071838840,-500.0,0.00019178,2]
[347694408,1736071838850,-518.1,0.00019178,2]
[347694409,1736071838859,-833.15,0.00019178,2]
[347694410,1736071838868,-500.0,0.00019178,2]
[347694411,1736071838879,-500.0,0.00019178,2]
[347694412,1736071838888,-500.0,0.00019178,2]
[347694413,1736071838897,-619.9,0.00019178,2]
[347694414,1736071838906,-500.0,0.00019178,2]
[347694415,1736071838916,-329.3307391,0.00019178,2]
[347694416,1736071838925,-500.0,0.00019178,2]
[347694417,1736071838935,-500.0,0.00019178,2]
[347694418,1736071838944,-500.0,0.00019178,2]
[347694419,1736071838953,-500.0,0.00019178,2]
[347694420,1736071838963,-906.22,0.00019178,2]
[347694421,1736071838972,-638.26,0.00019178,2]
[347694422,1736071838981,-4342.3,0.00019178,2]
[347694423,1736071838991,-500.0,0.00019178,2]
[347694424,1736071839000,-500.0,0.00019178,2]
[347694425,1736071839009,-500.0,0.00019178,2]
[347694426,1736071839019,-500.0,0.00019178,2]
[347694427,1736071839028,-1456.98,0.00019178,2]
[347694428,1736071839037,-500.0,0.00019178,2]
[347694429,1736071839047,-518.66,0.00019178,2]
[347694430,1736071839056,-500.0,0.00019178,2]
[347694431,1736071839066,-738.08,0.00019178,2]
[347694432,1736071839075,-500.0,0.00019178,2]
[347694433,1736071839084,-500.0,0.00019178,2]
[347694434,1736071839094,-735.17,0.00019178,2]
[347694435,1736071839104,-669.11,0.00019178,2]
[347694436,1736071839114,-1035.88,0.00019178,2]
[347694437,1736071839123,-508.52,0.00019178,2]
[347694438,1736071839132,-3212.52,0.00019178,2]
[347694439,1736071839142,-935.84,0.00019178,2]
[347694440,1736071839152,-623.32,0.00019178,2]
[347694441,1736071839161,-513.82,0.00019178,2]
[347694442,1736071839171,-1133.24,0.00019178,2]
[347694443,1736071839180,-500.0,0.00019178,2]
[347694444,1736071839189,-738.99,0.00019178,2]
[347694445,1736071839202,-7262.0,0.00019178,2]
[347694446,1736071839214,-649.41,0.00019178,2]
[347694447,1736071839223,-586.24,0.00019178,2]
[347694448,1736071839233,-500.0,0.00019178,2]
[347694449,1736071839242,-500.0,0.00019178,2]
[347694450,1736071839251,-500.0,0.00019178,2]
[347694451,1736071839260,-525.48628859,0.00019178,2]
[347694452,1736071839270,-667.75,0.00019178,2]
[347694453,1736071839279,-500.0,0.00019178,2]
[347694454,1736071839289,-500.0,0.00019178,2]
[347694455,1736071839298,-569.32,0.00019178,2]
[347694456,1736071839307,-796.87,0.00019178,2]
[347694457,1736071839317,-500.0,0.00019178,2]
[347694458,1736071839326,-500.0,0.00019178,2]
[347694459,1736071839335,-943.74,0.00019178,2]
[347694460,1736071839345,-500.0,0.00019178,2]
[347694461,1736071839354,-1554.0,0.00019178,2]
[347694462,1736071839364,-500.0,0.00019178,2]
[347694463,1736071839373,-500.0,0.00019178,2]
[347694464,1736071839382,-672.21,0.00019178,2]
[347694465,1736071839391,-1036.78,0.00019178,2]
[347694466,1736071839401,-500.0,0.00019178,2]
[347694467,1736071839410,-561.05,0.00019178,2]
[347694468,1736071839419,-1085.68,0.00019178,2]
[347694469,1736071839428,-888.63,0.00019178,2]
[347694470,1736071839438,-536.69125989,0.00019178,2]
[347694471,1736071839447,-1861.27,0.00019178,2]
[347694472,1736071839459,-1010.09,0.00019178,2]
[347694473,1736071839468,-500.0,0.00019178,2]
[347694474,1736071839478,-623.48,0.00019178,2]
[347694475,1736071839487,-1150.92,0.00019178,2]
[347694476,1736071839496,-507.36905934,0.00019178,2]
[347694477,1736071839506,-3248.64,0.00019178,2]
[347694478,1736071839516,-500.0,0.00019178,2]
[347694479,1736071839526,-635.71,0.00019178,2]
[347694480,1736071839536,-285.35777963,0.00019178,2]
[347694481,1736071839545,-931.76,0.00019178,2]
[347694482,1736071839555,-500.0,0.00019178,2]
[347694483,1736071839564,-500.0,0.00019178,2]
[347694484,1736071839573,-500.0,0.00019178,2]
[347694485,1736071839583,-1185.85242658,0.00019178,2]
[347694486,1736071839604,-457.39757342,0.00019178,2]
[347694487,1736071839614,-775.83,0.00019178,2]
[347694488,1736071839623,-11348.89,0.00019178,2]
[347694489,1736071839633,-424.01370967,0.00019178,2]
[347694490,1736071839645,-75.98629033,0.00019178,2]
[347694491,1736071839655,-906.72912916,0.00019178,2]
[347694502,1736071843653,-1242.65087084,0.00019178,2]
[347694503,1736071843664,-37987.95784725,0.00019178,2]
[347694504,1736071843677,-3064.74215275,0.00019178,2]
[347694505,1736071843686,-500.0,0.00019178,2]
[347694506,1736071843695,-500.0,0.00019178,2]
[347694507,1736071843705,-230.53694991,0.00019178,2]
[347694521,1736071846461,-1150.12067292,0.00019178,2]
[347694522,1736071846553,-663.60237717,0.00019178,2]
[347694523,1736071846563,-500.0,0.00019178,2]
[347694524,1736071846572,-5222.2,0.00019178,2]
[347694525,1736071846582,-1881.71,0.00019178,2]
[347694526,1736071846591,-51.73374462,0.00019178,2]
[347694527,1736071846602,-448.26625538,0.00019178,2]
[347694528,1736071846612,-500.0,0.00019178,2]
[347694529,1736071846621,-1244.17,0.00019178,2]
[347694530,1736071846631,-500.0,0.00019178,2]
[347694531,1736071846641,-500.0,0.00019178,2]
[347694532,1736071846650,-596.72,0.00019178,2]
[347694533,1736071846811,-500.0,0.00019178,2]
[347694534,1736071846820,-898.89766889,0.00019178,2]
[347694535,1736071846832,-1197.92233111,0.00019178,2]
[347694536,1736071846842,-500.0,0.00019178,2]
[347694537,1736071846851,-899.62,0.00019178,2]
[347694538,1736071846860,-500.0,0.00019178,2]
[347694539,1736071846870,-500.0,0.00019178,2]
[347694540,1736071846879,-500.0,0.00019178,2]
[347694541,1736071846888,-393.84568273,0.00019178,2]
[347694542,1736071846897,-500.0,0.00019178,2]
[347694543,1736071846906,-3460.9,0.00019178,2]
[347694544,1736071846915,-585.85,0.00019178,2]
[347694545,1736071846924,-500.0,0.00019178,2]
[347694546,1736071846933,-500.0,0.00019178,2]
[347694547,1736071846943,-500.0,0.00019178,2]
[347694548,1736071846952,-1495.98,0.00019178,2]
[347694549,1736071846961,-500.0,0.00019178,2]
[347694550,1736071846970,-689.18,0.00019178,2]
[347694551,1736071846979,-1315.44,0.00019178,2]
[347694552,1736071846988,-1775.26,0.00019178,2]
[347694553,1736071846997,-600.15,0.00019178,2]
[347694554,1736071847007,-2899.68,0.00019178,2]
[347694555,1736071847016,-1509.7,0.00019178,2]
[347694556,1736071847025,-1423.86,0.00019178,2]
[347694557,1736071847034,-500.0,0.00019178,2]
[347694558,1736071847044,-155.15850832,0.00019178,2]
[347694559,1736071847053,-500.0,0.00019178,2]
[347694560,1736071847062,-177.06432394,0.00019178,2]
[347694561,1736071847074,-8238.13567606,0.00019178,2]
[347694562,1736071847083,-500.0,0.00019178,2]
[347694563,1736071847092,-723.29,0.00019178,2]
[347694564,1736071847103,-1864.1,0.00019178,2]
[347694565,1736071847112,-160.667897,0.00019178,2]
[347694566,1736071847121,-150.0,0.00019182,2]
[347694567,1736071847130,-257.917,0.00019182,2]
[347694568,1736071847139,-621.159,0.00019182,2]
[347694569,1736071847148,-2082.0,0.00019182,2]
[347694570,1736071847157,-394.0,0.00019182,2]
[347694571,1736071847166,-425.03,0.000192,2]
[347694572,1736071847176,-151.0,0.000192,2]
[347694573,1736071847185,-151.0,0.000192,2]
[347694574,1736071847196,-151.0,0.000192,2]
[347694575,1736071847206,-151.0,0.000192,2]
[347694576,1736071847217,-151.0,0.000192,2]
[347694577,1736071847227,-151.0,0.000192,2]
[347694578,1736071847236,-151.0,0.000192,2]
[347694579,1736071847245,-151.0,0.000192,2]
[347694580,1736071847254,-187.63015129,0.000192,2]
[347694581,1736071847264,-152.0,0.00019288,2]
[347694582,1736071847273,-2004.56056292,0.000193,2]
[347694583,1736071847282,-4724.15489401,0.000193,2]
[347694584,1736071886597,370.530236,0.00013973,2]
[347694590,1736072264742,-302.96970909,0.00019,2]
[347694591,1736072264767,-185.76419844,0.00019078,2]
[347694592,1736072264790,-340.0397421,0.00019078,2]
[347694593,1736072264813,-1000.0,0.00019177,35]
[347694594,1736072264837,-300.0,0.00019177,2]
[347694595,1736072264863,-202.93462148,0.00019177,2]
[347694596,1736072264886,-862.14,0.00019178,2]
[347694597,1736072264910,-611.67,0.00019178,2]
[347694598,1736072264933,-500.0,0.00019178,2]
[347694599,1736072264957,-500.0,0.00019178,2]
[347694600,1736072264980,-868.46,0.00019178,2]
[347694601,1736072265005,-500.0,0.00019178,2]
[347694602,1736072265030,-500.0,0.00019178,2]
[347694603,1736072265052,-876.5,0.00019178,2]
[347694604,1736072265076,-500.0,0.00019178,2]
[347694605,1736072265099,-500.0,0.00019178,2]
[347694606,1736072265122,-500.0,0.00019178,2]
[347694607,1736072265144,-707.33,0.00019178,2]
[347694608,1736072265167,-1396.27,0.00019178,2]
[347694609,1736072265189,-500.0,0.00019178,2]
[347694610,1736072265213,-992.72,0.00019178,2]
[347694611,1736072265236,-500.0,0.00019178,2]
[347694612,1736072265260,-500.0,0.00019178,2]
[347694613,1736072265283,-704.54,0.00019178,2]
[347694614,1736072265307,-641.23,0.00019178,2]
[347694615,1736072265331,-500.0,0.00019178,2]
[347694616,1736072265354,-896.85,0.00019178,2]
[347694617,1736072265378,-561.44,0.00019178,2]
[347694618,1736072265405,-597.35,0.00019178,2]
[347694619,1736072265428,-503.44200271,0.00019178,2]
[347694620,1736072265455,-500.0,0.00019178,2]
[347694621,1736072265480,-3316.69,0.00019178,2]
[347694622,1736072265506,-500.0,0.00019178,2]
[347694623,1736072265534,-2778.86,0.00019178,2]
[347694624,1736072265556,-500.0,0.00019178,2]
[347694625,1736072265580,-500.0,0.00019178,2]
[347694626,1736072265605,-500.0,0.00019178,2]
[347694627,1736072265628,-1260.63,0.00019178,2]
[347694628,1736072265650,-500.0,0.00019178,2]
[347694629,1736072265675,-500.0,0.00019178,2]
[347694630,1736072265700,-1786.43,0.00019178,2]
[347694631,1736072265724,-500.0,0.00019178,2]
[347694632,1736072265751,-538.85,0.00019178,2]
[347694633,1736072265775,-1364.54,0.00019178,2]
[347694634,1736072265799,-1701.29,0.00019178,2]
[347694635,1736072265823,-8201.64,0.00019178,2]
[347694636,1736072265848,-693.15,0.00019178,2]
[347694637,1736072265872,-1489.25,0.00019178,2]
[347694638,1736072265895,-500.0,0.00019178,2]
[347694639,1736072265918,-500.0,0.00019178,2]
[347694640,1736072266115,-500.0,0.00019178,2]
[347694641,1736072266140,-500.0,0.00019178,2]
[347694642,1736072266164,-537.67,0.00019178,2]
[347694643,1736072266187,-501.76221106,0.00019178,2]
[347694644,1736072266213,-622.35,0.00019178,2]
[347694645,1736072266238,-993.58,0.00019178,2]
[347694646,1736072266262,-500.0,0.00019178,2]
[347694647,1736072266287,-500.0,0.00019178,2]
[347694648,1736072266311,-500.0,0.00019178,2]
[347694649,1736072266336,-851.61,0.00019178,2]
[347694650,1736072266362,-500.0,0.00019178,2]
[347694651,1736072266385,-1783.72,0.00019178,2]
[347694652,1736072266409,-500.0,0.00019178,2]
[347694653,1736072266432,-503.26527972,0.00019178,2]
[347694654,1736072266460,-1086.02,0.00019178,2]
[347694655,1736072266484,-968.0,0.00019178,2]
[347694656,1736072266508,-1102.96,0.00019178,2]
[347694657,1736072266533,-500.0,0.00019178,2]
[347694658,1736072266556,-500.0,0.00019178,2]
[347694659,1736072266580,-597.5,0.00019178,2]
[347694660,1736072266607,-3113.28,0.00019178,2]
[347694661,1736072266628,-594.07,0.00019178,2]
[347694662,1736072266652,-1446.8,0.00019178,2]
[347694663,1736072266674,-500.0,0.00019178,2]
[347694664,1736072266697,-500.0,0.00019178,2]
[347694665,1736072266719,-500.0,0.00019178,2]
[347694666,1736072266740,-639.93,0.00019178,2]
[347694667,1736072266763,-500.0,0.00019178,2]
[347694668,1736072266785,-500.0,0.00019178,2]
[347694669,1736072266807,-561.81,0.00019178,2]
[347694670,1736072266830,-500.0,0.00019178,2]
[347694671,1736072266853,-545.6,0.00019178,2]
[347694672,1736072266876,-500.0,0.00019178,2]
[347694673,1736072266900,-500.0,0.00019178,2]
[347694674,1736072266922,-500.0,0.00019178,2]
[347694675,1736072266945,-892.94,0.00019178,2]
[347694676,1736072266968,-1574.78,0.00019178,2]
[347694677,1736072266990,-500.0,0.00019178,2]
[347694678,1736072267028,-2059.82,0.00019178,2]
[347694679,1736072267056,-10876.02,0.00019178,2]
[347694680,1736072267081,-500.0,0.00019178,2]
[347694681,1736072267104,-502.87375579,0.00019178,2]
[347694682,1736072267128,-968.33,0.00019178,2]
[347694683,1736072267152,-743.5,0.00019178,2]
[347694684,1736072267176,-500.0,0.00019178,2]
[347694685,1736072267202,-1959.08,0.00019178,2]
[347694686,1736072267226,-500.0,0.00019178,2]
[347694687,1736072267249,-535.96557354,0.00019178,2]
[347694688,1736072267274,-39342.17,0.00019178,2]
[347694689,1736072267297,-500.0,0.00019178,2]
[347694690,1736072267321,-644.2,0.00019178,2]
[347694691,1736072267347,-5004.61,0.00019178,2]
[347694692,1736072267372,-1803.3,0.00019178,2]
[347694693,1736072267396,-500.0,0.00019178,2]
[347694694,1736072267421,-500.0,0.00019178,2]
[347694695,1736072267447,-500.0,0.00019178,2]
[347694696,1736072267472,-1192.33,0.00019178,2]
[347694697,1736072267497,-500.0,0.00019178,2]
[347694698,1736072267523,-500.0,0.00019178,2]
[347694699,1736072267547,-848.99,0.00019178,2]
[347694700,1736072267572,-500.0,0.00019178,2]
[347694701,1736072267595,-500.0,0.00019178,2]
[347694702,1736072267623,-830.91,0.00019178,2]
[347694703,1736072267646,-2009.45,0.00019178,2]
[347694704,1736072267669,-500.0,0.00019178,2]
[347694705,1736072267692,-77.82290607,0.00019178,2]
[347694708,1736072405088,202.0,0.00025,120]
[347694709,1736072494327,1000.0,0.00014002,2]
[347694717,1736072796682,352.003724,0.00013973,2]
[347694726,1736072956840,1850.35088487,0.000139,10]
[347694727,1736072956876,20000.0,0.000139,10]
[347694728,1736072956910,5086.79467323,0.000139,10]
[347694777,1736073032890,-841.74109283,0.00015,2]
[347694779,1736073032900,-386.441,0.0001834,2]
[347694781,1736073032911,-297.53477432,0.00019078,2]
[347694783,1736073032921,-4203.08406853,0.0001917,2]
[347694785,1736073032931,-300.0,0.00019177,2]
[347694787,1736073032943,-500.0,0.00019178,2]
[347694789,1736073032953,-500.0,0.00019178,2]
[347694791,1736073032964,-500.0,0.00019178,2]
[347694794,1736073032974,-500.0,0.00019178,2]
[347694796,1736073032985,-500.0,0.00019178,2]
[347694798,1736073032995,-500.0,0.00019178,2]
[347694800,1736073033005,-500.0,0.00019178,2]
[347694802,1736073033015,-598.16,0.00019178,2]
[347694804,1736073033025,-796.29,0.00019178,2]
[347694806,1736073033036,-500.0,0.00019178,2]
[347694808,1736073033046,-490.0,0.00019178,2]
[347694810,1736073033056,-500.0,0.00019178,2]
[347694812,1736073033067,-500.0,0.00019178,2]
[347694814,1736073033076,-500.0,0.00019178,2]
[347694816,1736073033086,-500.0,0.00019178,2]
[347694819,1736073033097,-500.0,0.00019178,2]
[347694821,1736073033107,-500.0,0.00019178,2]
[347694823,1736073033117,-500.0,0.00019178,2]
[347694825,1736073033128,-660.47,0.00019178,2]
[347694827,1736073033139,-500.0,0.00019178,2]
[347694829,1736073033149,-500.0,0.00019178,2]
[347694831,1736073033159,-798.43,0.00019178,2]
[347694833,1736073033170,-500.0,0.00019178,2]
[347694835,1736073033181,-500.0,0.00019178,2]
[347694837,1736073033192,-832.28,0.00019178,2]
[347694840,1736073033203,-500.0,0.00019178,2]
[347694841,1736073033214,-500.0,0.00019178,2]
[347694843,1736073033224,-7859.91,0.00019178,2]
[347694845,1736073033236,-1338.09,0.00019178,2]
[347694846,1736073033247,-500.0,0.00019178,2]
[347694847,1736073033257,-500.0,0.00019178,2]
[347694848,1736073033268,-4161.37,0.00019178,2]
[347694850,1736073033278,-675.18,0.00019178,2]
[347694852,1736073033289,-1386.51,0.00019178,2]
[347694854,1736073033299,-614.52,0.00019178,2]
[347694856,1736073033309,-500.0,0.00019178,2]
[347694857,1736073033320,-500.0,0.00019178,2]
[347694858,1736073033330,-500.0,0.00019178,2]
[347694859,1736073033340,-489.29237097,0.00019178,2]
[347694860,1736073033351,-500.0,0.00019178,2]
[347694861,1736073033362,-500.0,0.00019178,2]
[347694862,1736073033372,-500.0,0.00019178,2]
[347694863,1736073033383,-500.0,0.00019178,2]
[347694864,1736073033394,-1040.77,0.00019178,2]
[347694865,1736073033404,-3078.66,0.00019178,2]
[347694866,1736073033415,-500.0,0.00019178,2]
[347694867,1736073033425,-538.41,0.00019178,2]
[347694868,1736073033436,-500.0,0.00019178,2]
[347694869,1736073033446,-500.0,0.00019178,2]
[347694870,1736073033458,-500.0,0.00019178,2]
[347694871,1736073033468,-708.2,0.00019178,2]
[347694872,1736073033479,-664.27,0.00019178,2]
[347694873,1736073033493,-927.67,0.00019178,2]
[347694874,1736073033504,-952.18,0.00019178,2]
[347694875,1736073033514,-572.61,0.00019178,2]
[347694876,1736073033526,-816.12,0.00019178,2]
[347694877,1736073033538,-813.62,0.00019178,2]
[347694878,1736073033548,-500.0,0.00019178,2]
[347694879,1736073033559,-10422.85,0.00019178,2]
[347694880,1736073033570,-500.0,0.00019178,2]
[347694881,1736073033581,-712.52,0.00019178,2]
[347694882,1736073033592,-855.73,0.00019178,2]
[347694883,1736073033604,-4796.08,0.00019178,2]
[347694884,1736073033620,-500.0,0.00019178,2]
[347694885,1736073033632,-37702.92,0.00019178,2]
[347694886,1736073033644,-500.0,0.00019178,2]
[347694887,1736073033656,-839.97,0.00019178,2]
[347694888,1736073033667,-500.0,0.00019178,2]
[347694889,1736073033680,-1142.65,0.00019178,2]
[347694890,1736073033690,-1075.27,0.00019178,2]
[347694891,1736073033701,-826.22,0.00019178,2]
[347694892,1736073033712,-500.0,0.00019178,2]
[347694893,1736073033723,-538.05,0.00019178,2]
[347694894,1736073033734,-3178.5,0.00019178,2]